fUSD/lending_fUSD_20250115
["ID","MTS","AMOUNT","RATE_DAILY","PERIOD"]
[348992164,1736923847061,-500.0,0.00013013,2]
[348992165,1736923847070,-102.32803642,0.00013699,2]
[348992166,1736923847080,-500.0,0.00013699,2]
[348992167,1736923847089,-200.0,0.00013699,2]
[348992168,1736923847099,-585.29,0.00013703,2]
[348992169,1736923847108,-500.0,0.00013703,2]
[348992170,1736923847118,-515.49,0.00013703,2]
[348992171,1736923847127,-650.41,0.00013703,2]
[348992172,1736923847136,-500.0,0.00013703,2]
[348992173,1736923847145,-500.0,0.00013703,2]
[348992174,1736923847155,-500.0,0.00013703,2]
[348992175,1736923847164,-626.53,0.00013703,2]
[348992176,1736923847174,-537.96,0.00013704,2]
[348992177,1736923847183,-502.76,0.00013704,2]
[348992178,1736923847192,-500.0,0.00013704,2]
[348992179,1736923847202,-500.0,0.00013704,2]
[348992180,1736923847221,-204.36568098,0.00013752,2]
[348992181,1736923847231,-500.0,0.00013835,2]
[348992182,1736923847240,-500.0,0.00013835,2]
[348992183,1736923847250,-742.47,0.00013835,2]
[348992184,1736923847259,-500.0,0.00013852,2]
[348992185,1736923847267,-500.0,0.00013852,2]
[348992186,1736923847277,-500.0,0.00013852,2]
[348992187,1736923847287,-566.67,0.00013852,2]
[348992188,1736923847297,-500.0,0.00013852,2]
[348992189,1736923847306,-500.0,0.00013852,2]
[348992190,1736923847315,-500.0,0.00013852,2]
[348992191,1736923847325,-500.0,0.00013852,2]
[348992192,1736923847334,-500.0,0.00013852,2]
[348992193,1736923847343,-634.44,0.00013852,2]
[348992194,1736923847353,-630.6,0.00013852,2]
[348992195,1736923847363,-500.0,0.00013852,2]
[348992196,1736923847373,-500.0,0.00013852,2]
[348992197,1736923847382,-585.29,0.00013977,2]
[348992198,1736923847391,-500.0,0.00013977,2]
[348992199,1736923847401,-650.41,0.00013977,2]
[348992200,1736923847410,-500.0,0.00013977,2]
[348992201,1736923847419,-500.0,0.00013977,2]
[348992202,1736923847428,-500.0,0.00013977,2]
[348992203,1736923847438,-537.96,0.00013978,2]
[348992204,1736923847447,-502.76,0.00013978,2]
[348992205,1736923847457,-500.0,0.00013978,2]
[348992206,1736923847466,-500.0,0.00013978,2]
[348992207,1736923847476,-267.34,0.00014104,2]
[348992208,1736923847485,-500.0,0.00014109,2]
[348992209,1736923847496,-500.0,0.00014109,2]
[348992210,1736923847506,-742.47,0.00014109,2]
[348992211,1736923847516,-500.0,0.00014126,2]
[348992212,1736923847525,-500.0,0.00014126,2]
[348992213,1736923847535,-500.0,0.00014126,2]
[348992214,1736923847545,-500.0,0.00014126,2]
[348992215,1736923847555,-500.0,0.00014126,2]
[348992216,1736923847564,-500.0,0.00014126,2]
[348992217,1736923847574,-500.0,0.00014126,2]
[348992218,1736923847583,-484.16,0.00014126,2]
[348992219,1736923847593,-634.44,0.00014126,2]
[348992220,1736923847602,-630.6,0.00014126,2]
[348992221,1736923847612,-500.0,0.00014126,2]
[348992222,1736923847621,-500.0,0.00014126,2]
[348992223,1736923847630,-620.21,0.00014135,2]
[348992224,1736923847640,-585.29,0.00014251,2]
[348992225,1736923847649,-500.0,0.00014251,2]
[348992226,1736923847659,-650.41,0.00014251,2]
[348992227,1736923847668,-500.0,0.00014251,2]
[348992228,1736923847677,-500.0,0.00014251,2]
[348992229,1736923847686,-500.0,0.00014251,2]
[348992230,1736923847695,-537.96,0.00014252,2]
[348992231,1736923847704,-502.76,0.00014252,2]
[348992232,1736923847713,-500.0,0.00014252,2]
[348992233,1736923847722,-500.0,0.00014252,2]
[348992234,1736923847732,-204.36568094,0.00014302,2]
[348992235,1736923847741,-500.0,0.00014383,2]
[348992236,1736923847750,-742.47,0.00014383,2]
[348992237,1736923847759,-237.79,0.00014383,2]
[348992238,1736923847768,-500.0,0.000144,2]
[348992239,1736923847778,-500.0,0.000144,2]
[348992240,1736923847787,-500.0,0.000144,2]
[348992241,1736923847797,-500.0,0.000144,2]
[348992242,1736923847806,-500.0,0.000144,2]
[348992243,1736923847815,-500.0,0.000144,2]
[348992244,1736923847824,-500.0,0.000144,2]
[348992245,1736923847834,-634.44,0.000144,2]
[348992246,1736923847843,-630.6,0.000144,2]
[348992247,1736923847853,-620.51,0.000144,2]
[348992248,1736923847863,-500.0,0.000144,2]
[348992249,1736923847872,-585.29,0.00014525,2]
[348992250,1736923847881,-500.0,0.00014525,2]
[348992251,1736923847890,-650.41,0.00014525,2]
[348992252,1736923847899,-500.0,0.00014525,2]
[348992253,1736923847908,-500.0,0.00014525,2]
[348992254,1736923847918,-500.0,0.00014525,2]
[348992255,1736923847928,-500.0,0.00014526,2]
[348992256,1736923847938,-537.96,0.00014526,2]
[348992257,1736923847948,-502.76,0.00014526,2]
[348992258,1736923847957,-500.0,0.00014526,2]
[348992259,1736923847967,-500.0,0.00014526,2]
[348992260,1736923847979,-877.41,0.0001454,2]
[348992261,1736923847989,-1960.12,0.0001454,2]
[348992262,1736923847998,-150.0,0.0001454,2]
[348992263,1736923848007,-151.5,0.0001454,2]
[348992264,1736923848018,-150.57,0.0001454,2]
[348992265,1736923848028,-150.0,0.0001454,2]
[348992266,1736923848038,-150.0,0.0001454,2]
[348992267,1736923848049,-150.0,0.0001454,2]
[348992268,1736923848059,-980.42,0.0001454,2]
[348992269,1736923848068,-150.0,0.0001454,2]
[348992270,1736923848078,-150.0,0.0001454,2]
[348992271,1736923848088,-980.42,0.0001454,2]
[348992272,1736923848097,-150.0,0.0001454,2]
[348992273,1736923848106,-150.0,0.0001454,2]
[348992274,1736923848116,-150.0,0.0001454,2]
[348992275,1736923848126,-150.0,0.0001454,2]
[348992276,1736923848136,-980.42,0.0001454,2]
[348992277,1736923848146,-150.0,0.0001454,2]
[348992278,1736923848156,-980.42,0.0001454,2]
[348992279,1736923848166,-150.0,0.0001454,2]
[348992280,1736923848175,-300.99,0.0001454,2]
[348992281,1736923848185,-980.42,0.0001454,2]
[348992282,1736923848195,-150.0,0.0001454,2]
[348992283,1736923848204,-150.0,0.0001454,2]
[348992284,1736923848214,-150.0,0.0001454,2]
[348992285,1736923848224,-150.0,0.0001454,2]
[348992286,1736923848235,-152.62,0.0001454,2]
[348992287,1736923848245,-189.95,0.00014646,2]
[348992288,1736923848255,-500.0,0.00014657,2]
[348992289,1736923848265,-742.47,0.00014657,2]
[348992290,1736923848275,-500.0,0.00014674,2]
[348992291,1736923848286,-500.0,0.00014674,2]
[348992292,1736923848296,-500.0,0.00014674,2]
[348992293,1736923848306,-500.0,0.00014674,2]
[348992294,1736923848316,-544.87,0.00014674,2]
[348992295,1736923848326,-500.0,0.00014674,2]
[348992296,1736923848336,-500.0,0.00014674,2]
[348992297,1736923848346,-634.44,0.00014674,2]
[348992298,1736923848356,-630.6,0.00014674,2]
[348992299,1736923848366,-500.0,0.00014674,2]
[348992300,1736923848376,-500.0,0.00014714,2]
[348992301,1736923848386,-585.29,0.00014799,2]
[348992302,1736923848397,-500.0,0.00014799,2]
[348992303,1736923848407,-650.41,0.00014799,2]
[348992304,1736923848417,-500.0,0.00014799,2]
[348992305,1736923848428,-500.0,0.00014799,2]
[348992306,1736923848438,-500.0,0.00014799,2]
[348992307,1736923848449,-500.0,0.000148,2]
[348992308,1736923848459,-502.76,0.000148,2]
[348992309,1736923848469,-500.0,0.000148,2]
[348992310,1736923848481,-500.0,0.000148,2]
[348992311,1736923848492,-511.4892403,0.00014825,2]
[348992312,1736923848502,-204.36568094,0.00014852,2]
[348992313,1736923848512,-500.0,0.00014931,2]
[348992314,1736923848521,-742.47,0.00014931,2]
[348992315,1736923848531,-500.0,0.00014948,2]
[348992316,1736923848541,-500.0,0.00014948,2]
[348992317,1736923848551,-500.0,0.00014948,2]
[348992318,1736923848560,-500.0,0.00014948,2]
[348992319,1736923848571,-500.0,0.00014948,2]
[348992320,1736923848580,-500.0,0.00014948,2]
[348992321,1736923848590,-634.44,0.00014948,2]
[348992322,1736923848600,-630.6,0.00014948,2]
[348992323,1736923848610,-500.0,0.00014948,2]
[348992324,1736923848620,-221.94932506,0.00014956,2]
[348992325,1736923848629,-221.94932506,0.00014958,2]
[348992326,1736923848639,-999.34849863,0.00014958,2]
[348992327,1736923848648,-999.34849863,0.00014959,2]
[348992328,1736923848658,-221.94932506,0.00014966,2]
[348992329,1736923848667,-639.19997463,0.0001497,2]
[348992330,1736923848677,-999.34849863,0.00014971,2]
[348992331,1736923848687,-999.34849863,0.00014971,2]
[348992332,1736923848697,-639.19997463,0.00014973,2]
[348992333,1736923848707,-639.19997463,0.00014973,2]
[348992334,1736923848717,-999.34849863,0.00014976,2]
[348992335,1736923848727,-639.19997463,0.00014976,2]
[348992336,1736923848736,-221.94932506,0.00014981,2]
[348992337,1736923848746,-639.19997463,0.00014984,2]
[348992338,1736923848755,-999.34849863,0.00014989,2]
[348992339,1736923848765,-639.19997463,0.0001499,2]
[348992340,1736923848775,-7496.0,0.00015,2]
[348992341,1736923848784,-221.94932506,0.00015,2]
[348992342,1736923848794,-170.0,0.00015,2]
[348992343,1736923848804,-650.0,0.00015,2]
[348992344,1736923848814,-2772.624,0.00015068,2]
[348992345,1736923848824,-246.695,0.00015068,2]
[348992346,1736923848833,-500.0,0.00015068,2]
[348992347,1736923848843,-800.0,0.00015068,2]
[348992348,1736923848852,-300.0,0.00015068,2]
[348992349,1736923848863,-585.29,0.00015073,2]
[348992350,1736923848872,-500.0,0.00015073,2]
[348992351,1736923848882,-650.41,0.00015073,2]
[348992352,1736923848891,-500.0,0.00015073,2]
[348992353,1736923848901,-500.0,0.00015073,2]
[348992354,1736923848914,-500.0,0.00015073,2]
[348992355,1736923848926,-500.0,0.00015074,2]
[348992356,1736923848939,-502.76,0.00015074,2]
[348992357,1736923848952,-500.0,0.00015074,2]
[348992358,1736923848968,-645.11,0.00015074,2]
[348992359,1736923848979,-500.0,0.00015205,2]
[348992360,1736923848992,-742.47,0.00015205,2]
[348992361,1736923849008,-500.0,0.00015222,2]
[348992362,1736923849019,-500.0,0.00015222,2]
[348992363,1736923849029,-290.46,0.00015222,2]
[348992364,1736923849042,-500.0,0.00015222,2]
[348992365,1736923849056,-500.0,0.00015222,2]
[348992366,1736923849069,-500.0,0.00015222,2]
[348992367,1736923849079,-634.44,0.00015222,2]
[348992368,1736923849091,-630.6,0.00015222,2]
[348992369,1736923849102,-1000.0,0.00015262,2]
[348992370,1736923849114,-3000.0,0.00015273,2]
[348992371,1736923849126,-585.29,0.00015347,2]
[348992372,1736923849139,-500.0,0.00015347,2]
[348992373,1736923849152,-650.41,0.00015347,2]
[348992374,1736923849165,-500.0,0.00015347,2]
[348992375,1736923849177,-500.0,0.00015347,2]
[348992376,1736923849190,-500.0,0.00015347,2]
[348992377,1736923849202,-500.0,0.00015348,2]
[348992378,1736923849214,-502.76,0.00015348,2]
[348992379,1736923849226,-500.0,0.00015348,2]
[348992380,1736923849237,-323.22,0.00015371,2]
[348992381,1736923849248,-267.34,0.00015386,2]
[348992382,1736923849258,-204.36568094,0.00015401,2]
[348992383,1736923849270,-620.21,0.0001542,2]
[348992384,1736923849282,-213.21,0.00015479,2]
[348992385,1736923849294,-742.47,0.00015479,2]
[348992386,1736923849306,-500.0,0.00015496,2]
[348992387,1736923849318,-213.06,0.00015496,2]
[348992388,1736923849330,-500.0,0.00015496,2]
[348992389,1736923849343,-500.0,0.00015496,2]
[348992390,1736923849354,-500.0,0.00015496,2]
[348992391,1736923849366,-634.44,0.00015496,2]
[348992392,1736923849378,-630.6,0.00015496,2]
[348992393,1736923849390,-585.29,0.00015621,2]
[348992394,1736923849402,-500.0,0.00015621,2]
[348992395,1736923849414,-650.41,0.00015621,2]
[348992396,1736923849425,-500.0,0.00015621,2]
[348992397,1736923849436,-500.0,0.00015621,2]
[348992398,1736923849448,-500.0,0.00015621,2]
[348992399,1736923849459,-500.0,0.00015622,2]
[348992400,1736923849472,-502.76,0.00015622,2]
[348992401,1736923849483,-588.57,0.00015622,2]
[348992402,1736923849495,-176.462948,0.00015753,2]
[348992403,1736923849508,-176.462948,0.00015753,2]
[348992404,1736923849520,-151.0,0.00015753,2]
[348992405,1736923849531,-742.47,0.00015753,2]
[348992406,1736923849543,-500.0,0.0001577,2]
[348992407,1736923849555,-500.0,0.0001577,2]
[348992408,1736923849566,-500.0,0.0001577,2]
[348992409,1736923849576,-500.0,0.0001577,2]
[348992410,1736923849587,-634.44,0.0001577,2]
[348992411,1736923849598,-630.6,0.0001577,2]
[348992412,1736923849609,-585.29,0.00015895,2]
[348992413,1736923849620,-500.0,0.00015895,2]
[348992414,1736923849632,-650.41,0.00015895,2]
[348992415,1736923849643,-500.0,0.00015895,2]
[348992416,1736923849653,-500.0,0.00015895,2]
[348992417,1736923849666,-500.0,0.00015895,2]
[348992418,1736923849677,-500.0,0.00015896,2]
[348992419,1736923849688,-502.76,0.00015896,2]
[348992420,1736923849699,-1000.0,0.000159,5]
[348992421,1736923849710,-204.36568094,0.00015951,2]
[348992422,1736923849722,-189.95,0.00015977,2]
[348992423,1736923849734,-500.0,0.00015999,2]
[348992424,1736923849745,-703.92,0.00015999,2]
[348992425,1736923849757,-2000.0,0.00016,2]
[348992426,1736923849770,-2871.95,0.00016,2]
[348992427,1736923849782,-6430.18196368,0.00016,2]
[348992428,1736923849799,-696.995721,0.00016,2]
[348992429,1736924458173,-150.0,0.00019688,120]
[348992430,1736924458203,-150.0,0.00019865,120]
[348992431,1736924458234,-339.0,0.0002,120]
[348992432,1736924458261,-150.0,0.00020076,120]
[348992433,1736924458288,-150.0,0.00020278,120]
[348992434,1736924458314,-150.0,0.00020342,120]
[348992435,1736924458340,-150.0,0.00020393,120]
[348992436,1736924458365,-150.0,0.00020428,120]
[348992437,1736924458389,-150.0,0.00020545,120]
[348992438,1736924458660,-150.0,0.00020673,120]
[348992439,1736924458688,-150.0,0.00020849,120]
[348992440,1736924458724,-210.0,0.00021,120]
[348992441,1736924458750,-2050.09763412,0.00021,120]
[348992442,1736924458787,-220.0,0.00022,120]
[348992443,1736924458813,-500.0,0.00022292,120]
[348992444,1736924458843,-629.97879,0.00022609,120]
[348992445,1736924458870,-246.686066,0.00022609,120]
[348992446,1736924458906,-450.0,0.00023,120]
[348992447,1736924458931,-197.4240061,0.00023,120]
[348992448,1736924490899,150.0,0.0001991,120]
[348992449,1736924550952,150.0,0.00019128,120]
[348992450,1736924562625,180.86045318,0.00023,120]
[348992451,1736924591304,500.0,0.00022999,120]
[348992452,1736924599726,2000.0,0.00022396,120]
[348992453,1736924600090,2000.0,0.00022999,120]
[348992454,1736924612377,500.0,0.00022335,120]
[348992455,1736924633327,200.0,0.00022335,120]
[348992456,1736924671189,150.0,0.00020251,120]
[348992457,1736924703133,3358.2340508,0.00023,120]
[348992458,1736924704089,323.7598537,0.00023,120]
[348992459,1736924731850,150.0,0.00019229,120]
[348992460,1736924745019,566.5867042,0.00014799,120]
[348992461,1736924791009,150.0,0.00019632,120]
[348992462,1736924811478,1000.0,0.00021917,120]
[348992463,1736924811734,1000.0,0.00021917,120]
[348992464,1736924811976,960.73578494,0.00021917,120]
[348992466,1736924851029,150.0,0.00018988,120]
[348992467,1736924911165,150.0,0.00019745,120]
[348992468,1736924971133,150.0,0.00019231,120]
[348992471,1736925031767,150.0,0.0001878,120]
[348992479,1736925032054,-156.46,0.00010137,2]
[348992481,1736925032065,-914.24,0.0001103,2]
[348992482,1736925032083,-1322.22029579,0.0001103,2]
[348992483,1736925032113,-938.28098587,0.0001103,2]
[348992484,1736925032122,-158.14,0.0001113,2]
[348992485,1736925032132,-3174.74128165,0.00011196,2]
[348992486,1736925032142,-2145.36442828,0.00011362,2]
[348992487,1736925032228,-1029.37685337,0.00011362,2]
[348992488,1736925032238,-2705.55145326,0.00011462,2]
[348992489,1736925032249,-10261.0843559,0.00011462,2]
[348992490,1736925032259,-375.2007146,0.00011462,2]
[348992491,1736925032343,-326.4592854,0.00011462,2]
[348992492,1736925032352,-287.61,0.0001147,2]
[348992493,1736925032362,-250.0,0.00012069,2]
[348992494,1736925032372,-445.51,0.00012138,2]
[348992495,1736925032381,-445.51,0.00012141,2]
[348992496,1736925032391,-445.51,0.00012144,2]
[348992497,1736925032400,-445.51,0.00012148,2]
[348992498,1736925032409,-300.0,0.0001215,2]
[348992499,1736925032419,-445.51,0.00012151,2]
[348992500,1736925032429,-445.51,0.00012154,2]
[348992501,1736925032439,-445.51,0.00012157,2]
[348992502,1736925032448,-445.51,0.0001216,2]
[348992503,1736925032457,-445.51,0.00012164,2]
[348992504,1736925032467,-445.51,0.00012167,2]
[348992505,1736925032476,-445.51,0.0001217,2]
[348992506,1736925032486,-445.51,0.00012173,2]
[348992507,1736925032495,-334.19407898,0.00012176,2]
[348992508,1736925032507,-111.31592102,0.00012176,2]
[348992509,1736925032516,-328.85407898,0.0001218,2]
[348992510,1736925032527,-116.65592102,0.0001218,2]
[348992511,1736925032537,-445.51,0.00012183,2]
[348992513,1736925032546,-437.83407898,0.00012186,2]
[348992516,1736925032559,-7.67592102,0.00012186,2]
[348992517,1736925032568,-445.51,0.00012189,2]
[348992519,1736925032577,-445.51,0.00012192,2]
[348992521,1736925032587,-445.51,0.00012196,2]
[348992523,1736925032596,-445.51,0.00012199,2]
[348992525,1736925032605,-197.54,0.00012329,2]
[348992527,1736925032614,-500.0,0.00012334,2]
[348992529,1736925032624,-250.0,0.00012398,2]
[348992531,1736925032633,-500.0,0.00012464,2]
[348992532,1736925032642,-196.44539145,0.00012464,2]
[348992533,1736925032651,-263.39958734,0.00012608,2]
[348992534,1736925032666,-333.70041266,0.00012608,2]
[348992535,1736925032676,-500.0,0.00012738,2]
[348992536,1736925032685,-511.4892403,0.00012781,2]
[348992537,1736925032694,-311.6762,0.00012781,2]
[348992538,1736925032703,-200.0,0.00012821,2]
[348992546,1736925032939,-500.0,0.00012881,2]
[348992547,1736925032950,-507.99256124,0.00012881,2]
[348992548,1736925032961,-500.0,0.00012881,2]
[348992549,1736925032970,-158.24717016,0.00012881,2]
[348992550,1736925032979,-200.23888333,0.00012881,2]
[348992551,1736925032989,-500.0,0.00012881,2]
[348992552,1736925032999,-500.0,0.00012881,2]
[348992553,1736925033009,-500.0,0.00012881,2]
[348992554,1736925033019,-500.0,0.00012881,2]
[348992555,1736925033028,-502.14588881,0.00012881,2]
[348992556,1736925033038,-500.0,0.00012881,2]
[348992557,1736925033048,-500.0,0.00012881,2]
[348992558,1736925033058,-500.0,0.00012881,2]
[348992559,1736925033068,-500.0,0.00012881,2]
[348992560,1736925033077,-500.0,0.00012881,2]
[348992561,1736925033087,-500.0,0.00012881,2]
[348992562,1736925033096,-500.0,0.00012881,2]
[348992563,1736925033106,-500.0,0.00012881,2]
[348992564,1736925033116,-516.02862644,0.00012881,2]
[348992565,1736925033126,-505.10532226,0.00012881,2]
[348992566,1736925033135,-506.8608022,0.00012881,2]
[348992567,1736925033144,-500.0,0.00012881,2]
[348992568,1736925033154,-229.27848428,0.00012881,2]
[348992569,1736925033167,-270.72151572,0.00012881,2]
[348992570,1736925033176,-500.0,0.00012881,2]
[348992571,1736925033186,-501.67505584,0.00012881,2]
[348992572,1736925033196,-500.0,0.00012881,2]
[348992573,1736925033205,-503.65266573,0.00012881,2]
[348992574,1736925033215,-402.60049348,0.00012881,2]
[348992575,1736925033225,-341.61116523,0.00012881,2]
[348992601,1736925038100,-163.65920393,0.00012881,2]
[348992602,1736925038110,-503.76651953,0.00012881,2]
[348992603,1736925038119,-474.69151697,0.00012881,2]
[348992604,1736925038131,-31.47018494,0.00012881,2]
[348992605,1736925038141,-502.70225883,0.00012881,2]
[348992606,1736925038150,-500.0,0.00012881,2]
[348992607,1736925038160,-500.0,0.00012881,2]
[348992608,1736925038170,-505.80447116,0.00012881,2]
[348992609,1736925038179,-503.16500725,0.00012881,2]
[348992610,1736925038189,-500.0,0.00012881,2]
[348992611,1736925038199,-500.0,0.00012881,2]
[348992612,1736925038208,-504.36471595,0.00012881,2]
[348992613,1736925038219,-500.0,0.00012881,2]
[348992614,1736925038229,-500.0,0.00012881,2]
[348992615,1736925038238,-503.99420942,0.00012881,2]
[348992616,1736925038247,-504.33418568,0.00012881,2]
[348992617,1736925038257,-510.39896248,0.00012881,2]
[348992618,1736925038266,-268.22849662,0.00012881,2]
[348992785,1736925040148,-231.77150338,0.00012881,2]
[348992787,1736925040158,-501.84666235,0.00012881,2]
[348992789,1736925040168,-474.25163761,0.00012881,2]
[348992792,1736925040186,-25.74836239,0.00012881,2]
[348992794,1736925040195,-501.74123412,0.00012881,2]
[348992795,1736925040205,-500.0,0.00012881,2]
[348992797,1736925040214,-500.0,0.00012881,2]
[348992799,1736925040224,-500.0,0.00012881,2]
[348992801,1736925040233,-509.56564344,0.00012881,2]
[348992803,1736925040242,-500.0,0.00012881,2]
[348992805,1736925040251,-500.0,0.00012881,2]
[348992807,1736925040262,-5.10731626,0.00012881,2]
[348992809,1736925040277,-494.89268374,0.00012881,2]
[348992811,1736925040288,-500.0,0.00012881,2]
[348992813,1736925040298,-419.00928693,0.00012881,2]
[348992815,1736925040307,-510.05912143,0.00012881,2]
[348992817,1736925040316,-500.0,0.00012881,2]
[348992819,1736925040326,-500.0,0.00012881,2]
[348992821,1736925040335,-507.02213136,0.00012881,2]
[348992823,1736925040344,-500.0,0.00012881,2]
[348992825,1736925040353,-500.0,0.00012881,2]
[348992827,1736925040363,-500.0,0.00012881,2]
[348992829,1736925040372,-510.3178921,0.00012881,2]
[348992830,1736925040381,-500.0,0.00012881,2]
[348992832,1736925040391,-500.0,0.00012881,2]
[348992834,1736925040400,-500.0,0.00012881,2]
[348992836,1736925040410,-508.0099054,0.00012881,2]
[348992838,1736925040419,-500.0,0.00012881,2]
[348992840,1736925040428,-500.0,0.00012881,2]
[348992842,1736925040438,-500.0,0.00012881,2]
[348992844,1736925040447,-500.0,0.00012881,2]
[348992845,1736925040457,-500.0,0.00012881,2]
[348992847,1736925040467,-500.0,0.00012881,2]
[348992849,1736925040475,-501.71922145,0.00012881,2]
[348992851,1736925040485,-161.33075921,0.00012881,2]
[348992853,1736925040495,-500.0,0.00012881,2]
[348992855,1736925040504,-500.0,0.00012881,2]
[348992857,1736925040514,-500.0,0.00012881,2]
[348992859,1736925040523,-500.0,0.00012881,2]
[348992861,1736925040533,-515.93945486,0.00012881,2]
[348992862,1736925040542,-645.26,0.00012881,2]
[348992864,1736925040551,-500.0,0.00012881,2]
[348992866,1736925040560,-500.0,0.00012881,2]
[348992868,1736925040570,-500.0,0.00012881,2]
[348992870,1736925040579,-500.0,0.00012881,2]
[348992872,1736925040588,-500.0,0.00012881,2]
[348992874,1736925040597,-500.0,0.00012881,2]
[348992876,1736925040607,-500.0,0.00012881,2]
[348992878,1736925040616,-500.0,0.00012881,2]
[348992880,1736925040625,-500.0,0.00012881,2]
[348992881,1736925040634,-500.0,0.00012881,2]
[348992883,1736925040644,-500.0,0.00012881,2]
[348992885,1736925040653,-500.0,0.00012881,2]
[348992887,1736925040663,-500.0,0.00012881,2]
[348992889,1736925040672,-500.0,0.00012881,2]
[348992891,1736925040681,-500.0,0.00012881,2]
[348992893,1736925040690,-701.66,0.00012895,2]
[348992895,1736925040699,-287.61,0.00012904,2]
[348992896,1736925040708,-500.0,0.00013012,2]
[348992897,1736925040717,-356.95,0.00013048,2]
[348992898,1736925040727,-200.0852,0.00013055,2]
[348992899,1736925040736,-2500.0,0.00013055,2]
[348992900,1736925040745,-3581.30434352,0.00013062,2]
[348992901,1736925040757,-1280.56774011,0.00013062,2]
[348992902,1736925040776,-6594.82303768,0.00013062,2]
[348992903,1736925040788,-1238.92010333,0.00013062,2]
[348992905,1736925040803,-505.32043468,0.00013062,2]
[348992906,1736925040815,-1459.69617014,0.00013062,2]
[348992907,1736925040826,-418.54789703,0.00013062,2]
[348993153,1736925043112,-4049.1615056,0.00013062,2]
[348993155,1736925043124,-4221.1200169,0.00013062,2]
[348993157,1736925043135,-501.05350463,0.00013062,2]
[348993160,1736925043149,-340.77903745,0.00013062,2]
[348993163,1736925043168,-18782.00000001,0.00013062,2]
[348993165,1736925043182,-1068.64597801,0.00013062,2]
[348993168,1736925043197,-300.0,0.00013062,2]
[348993174,1736925043247,-13870.33243091,0.00013062,2]
[348993176,1736925043258,-4149.1537,0.00013062,2]
[348993178,1736925043269,-262.734758,0.00013154,2]
[348993181,1736925043280,-231.861882,0.00013154,2]
[348993183,1736925043291,-500.0,0.00013154,2]
[348993185,1736925043302,-500.0,0.00013154,2]
[348993187,1736925043312,-167.284272,0.00013154,2]
[348993189,1736925043323,-158.585778,0.00013154,2]
[348993191,1736925043334,-500.0,0.00013154,2]
[348993193,1736925043346,-500.0,0.00013154,2]
[348993196,1736925043358,-500.0,0.00013154,2]
[348993198,1736925043369,-500.0,0.00013154,2]
[348993200,1736925043380,-500.0,0.00013154,2]
[348993201,1736925043392,-500.0,0.00013154,2]
[348993202,1736925043405,-500.0,0.00013154,2]
[348993203,1736925043416,-500.0,0.00013154,2]
[348993204,1736925043427,-500.0,0.00013154,2]
[348993205,1736925043438,-500.0,0.00013154,2]
[348993206,1736925043449,-500.0,0.00013154,2]
[348993207,1736925043459,-500.0,0.00013154,2]
[348993208,1736925043469,-500.0,0.00013154,2]
[348993209,1736925043479,-500.0,0.00013154,2]